bitfinex-derivatives/quotes_ETHF0:USTF0_20241004
["timestamp","ask_amount","ask_price","bid_price","bid_amount"]
[1728051527910,4.208,2376.2,2375.9,0.42094]
[1728051527911,0.422,2376.2,2375.9,0.42094]
[1728051528213,8.39745,2376.5,2376.3,0.42087]
[1728051528425,0.4209,2376.2,2375.8,1.45553]
[1728051528605,2.821,2376.5,2375.8,1.45553]
[1728051528802,2.821,2376.5,2375.9,1.05239]
[1728051529009,0.42089,2376.3,2376.2,0.42089]
[1728051529209,0.42091,2376.2,2375.8,1.45553]
[1728051529508,0.42091,2376.2,2376.1,0.4209]
[1728051530119,3.2078,2376.3,2375.8,0.4031]
[1728051530413,3.2078,2376.3,2376.0,0.42093]
[1728051530414,0.42092,2376.1,2376.0,0.42093]
[1728051530615,0.4209,2376.2,2376.1,0.4209]
[1728051530812,3.6287,2376.3,2375.9,0.42095]
[1728051531012,0.4209,2376.2,2376.1,0.4209]
[1728051531217,0.4209,2376.2,2376.0,0.42092]
[1728051531711,0.42092,2376.1,2376.0,0.42092]
[1728051531912,0.42091,2376.2,2376.1,0.42091]
[1728051532516,3.2078,2376.3,2375.8,0.4031]
[1728051532711,0.42092,2376.1,2376.0,0.42092]
[1728051533110,5.09227,2376.2,2375.7,0.4038]
[1728051533306,0.42097,2375.8,2375.7,0.82477]
[1728051534018,1.45105,2376.0,2375.7,0.4038]
[1728051534218,0.42096,2375.9,2375.8,0.42095]
[1728051535620,1.45105,2376.0,2375.7,0.4038]
[1728051535816,0.42097,2375.8,2375.7,0.82478]
[1728051536522,0.42097,2375.8,2375.7,0.4038]
[1728051536819,3.6065,2376.0,2375.9,0.42095]
[1728051537017,0.42092,2376.2,2376.1,0.42091]
[1728051538617,0.42094,2376.1,2376.0,0.42092]
[1728051539817,3.2078,2376.1,2375.8,0.4186]
[1728051540018,0.42094,2376.0,2375.9,0.42093]
[1728051540521,0.42093,2376.1,2376.0,0.42093]
[1728051540718,0.42093,2376.1,2375.8,0.4186]
[1728051541024,0.42095,2376.0,2375.8,0.4186]
[1728051541226,1.05225,2376.2,2375.8,0.4186]
[1728051541425,0.42094,2376.1,2376.0,0.42092]
[1728051541621,0.8341,2376.3,2376.2,0.4209]
[1728051541819,0.4209,2376.3,2376.2,0.4209]
[1728051542017,3.6287,2376.3,2376.2,0.4209]
[1728051542321,3.2078,2376.3,2376.2,0.4209]
[1728051542718,3.2078,2376.3,2376.2,0.42088]
[1728051542719,0.4209,2376.3,2376.2,0.42088]
[1728051543322,0.4209,2376.3,2376.0,1.46934]
[1728051543323,0.42092,2376.2,2376.1,0.4209]
[1728051543525,0.42095,2375.9,2375.8,0.83956]
[1728051544019,0.42095,2376.0,2375.9,0.42093]
[1728051545027,0.42095,2375.9,2375.8,0.83956]
[1728051545624,4.6558,2376.1,2375.8,0.4186]
[1728051545625,3.6035,2376.1,2375.8,0.4186]
[1728051545826,3.2078,2376.1,2376.0,0.42093]
[1728051546024,3.2078,2376.4,2375.8,0.4186]
[1728051546222,0.42089,2376.3,2376.2,0.42088]
[1728051546620,3.2078,2376.4,2376.3,0.42088]
[1728051546819,2.73949559,2376.7,2376.3,0.42088]
[1728051547020,0.4264,2377.0,2376.4,1.45895]
[1728051547219,0.4264,2377.0,2376.4,0.4068]
[1728051547414,0.4264,2377.0,2376.9,0.42077]
[1728051547627,3.62855,2377.1,2377.0,0.42076]
[1728051548130,0.42079,2376.9,2376.8,0.42078]
[1728051548329,0.42079,2376.9,2376.6,0.427]
[1728051548330,3.62855,2377.1,2377.0,0.42076]
[1728051548521,4.25966,2377.1,2376.6,0.427]
[1728051548721,0.42078,2376.9,2376.8,0.42078]
[1728051549223,1.05195,2376.9,2376.5,0.4025]
[1728051549418,3.2078,2377.1,2375.9,3.2078]
[1728051549419,1.05213,2376.5,2375.9,3.2078]
[1728051549622,3.2078,2376.5,2376.0,0.4276]
[1728051549927,0.42089,2376.3,2376.2,0.42088]
[1728051550126,0.42088,2376.4,2376.3,0.42087]
[1728051550631,0.42089,2376.3,2376.2,0.42088]
[1728051551126,0.42087,2376.4,2376.3,0.42086]
[1728051551925,2.73949559,2376.7,2376.3,4.208]
[1728051552133,3.16032559,2376.7,2376.6,0.42083]
[1728051552325,0.42083,2376.7,2376.6,0.42083]
[1728051552524,0.42084,2376.6,2376.0,0.4276]
[1728051552725,0.42084,2376.6,2376.2,0.42089]
[1728051552726,0.42089,2376.3,2376.2,0.42089]
[1728051552927,1.05212,2376.5,2376.0,1.47993]
[1728051553527,0.42087,2376.4,2376.3,0.42086]
[1728051553727,0.42087,2376.4,2376.0,1.47993]
[1728051553728,0.42089,2376.3,2376.2,0.42088]
[1728051554121,0.42091,2376.2,2376.1,0.42091]
[1728051554329,0.42091,2376.2,2376.0,0.84853]
[1728051554527,1.05217,2376.4,2376.0,0.84853]
[1728051554528,3.79166559,2376.4,2376.0,0.84853]
[1728051554730,1.43962,2376.3,2376.0,0.4276]
[1728051554929,0.42092,2376.1,2376.0,0.4276]
[1728051555128,2.73949559,2376.2,2376.1,0.42091]
[1728051555424,3.12689559,2376.3,2376.0,0.84853]
[1728051555629,0.42091,2376.2,2376.0,0.84853]
[1728051555831,3.12689559,2376.3,2376.0,0.4276]
[1728051556029,0.42092,2376.1,2376.0,0.4276]
[1728051556726,2.73949559,2376.1,2375.7,0.42098]
[1728051556935,0.42096,2375.9,2375.7,0.83838]
[1728051557539,0.42096,2375.9,2375.8,0.42097]
[1728051557836,0.42096,2375.9,2375.7,0.4174]
[1728051558245,0.42096,2375.9,2375.8,0.42097]
[1728051559444,0.42097,2375.8,2375.7,0.83838]
[1728051559637,1.05234,2376.0,2375.7,0.83838]
[1728051559941,0.42096,2375.9,2375.7,0.4174]
[1728051560139,3.79183559,2376.0,2375.7,0.4174]
[1728051560335,0.42096,2375.9,2375.8,0.42096]
[1728051562744,0.42096,2375.9,2375.8,0.42097]
[1728051562929,0.42097,2375.8,2375.7,0.83838]
[1728051563836,0.42096,2375.9,2375.8,0.42096]
[1728051568544,2.73949559,2376.0,2375.9,0.42095]
[1728051568749,2.73949559,2376.1,2376.0,0.42093]
[1728051569248,2.73949559,2376.1,2376.0,4.62973]
[1728051569941,3.16039559,2376.2,2376.1,0.42092]
[1728051570846,2.73949559,2376.2,2376.1,0.42092]
[1728051571145,2.73949559,2376.3,2376.2,0.4209]
[1728051571343,3.16036559,2376.4,2376.3,0.42088]
[1728051571738,2.73949559,2376.4,2376.2,0.4179]
[1728051571949,2.73949559,2376.4,2376.3,0.42088]
[1728051571950,3.16036559,2376.4,2376.3,0.42088]
[1728051572646,2.73949559,2376.4,2376.3,0.42088]
[1728051572840,3.16035559,2376.4,2376.3,0.42088]
[1728051573040,3.16035559,2376.4,2376.3,4.62888]
[1728051573252,2.73949559,2376.4,2376.3,4.62888]
[1728051573456,2.73949559,2376.4,2376.3,7.91888]
[1728051573750,4.90556973,2377.1,2376.6,1.05206]
[1728051573751,3.15249559,2377.1,2376.6,1.05206]
[1728051573948,2.73949559,2377.2,2376.8,3.29]
[1728051574147,7.02324312,2377.6,2377.0,3.29]
[1728051574148,1.44829559,2377.4,2377.0,3.29]
[1728051574347,0.42063,2377.8,2377.4,3.29]
[1728051574555,0.42063,2377.8,2377.7,0.42063]
[1728051575152,0.42061,2377.8,2377.7,0.42063]
[1728051575348,1.25920412,2378.0,2377.7,0.42063]
[1728051575548,1.25920412,2378.0,2377.8,0.42061]
[1728051575549,0.4206,2377.9,2377.8,0.42061]
[1728051575749,0.20773412,2378.0,2377.4,3.29]
[1728051575951,0.42061,2377.9,2377.3,0.4129]
[1728051576146,0.413,2378.1,2377.8,0.42061]
[1728051576356,0.413,2378.1,2377.8,0.4206]
[1728051576759,0.4206,2377.9,2377.8,0.4206]
[1728051576959,0.4206,2377.9,2377.4,4.3417]
[1728051577153,0.4206,2377.9,2377.4,4.34171]
[1728051577347,0.42062,2377.8,2377.7,0.42062]
[1728051577755,0.42061,2377.9,2377.8,0.42061]
[1728051578562,0.413,2378.1,2377.5,0.3873]
[1728051578751,0.42068,2377.5,2377.4,0.42068]
[1728051578956,0.42066,2377.6,2377.5,0.42066]
[1728051579162,0.42068,2377.5,2377.4,0.42067]
[1728051579359,3.29,2377.6,2377.1,0.3873]
[1728051579560,0.4207,2377.4,2377.3,0.4207]
[1728051579760,0.42072,2377.3,2377.2,0.42071]
[1728051580067,3.29,2377.4,2376.8,1.46388]
[1728051580366,0.42075,2377.1,2377.0,0.42074]
[1728051580566,0.42073,2377.2,2377.1,0.42072]
[1728051580768,0.42072,2377.3,2377.2,0.4207]
[1728051581458,6.9142,2377.6,2376.9,3.7165]
[1728051581771,1.05174,2377.4,2376.9,3.7165]
[1728051581958,0.42073,2377.2,2377.1,0.42073]
[1728051582362,7.96585,2377.6,2377.0,0.42075]
[1728051582363,0.42075,2377.1,2377.0,0.42075]
[1728051582572,0.42073,2377.2,2377.1,0.42072]
[1728051583565,0.42072,2377.3,2377.2,0.42071]
[1728051583766,1.05168,2377.5,2376.9,4.76843]
[1728051583968,0.42073,2377.2,2377.1,0.42073]
[1728051584169,1.05168,2377.5,2376.9,4.76843]
[1728051584466,0.4207,2377.4,2377.3,0.42069]
[1728051584668,0.42069,2377.5,2377.4,0.42068]
[1728051585062,0.42069,2377.5,2377.4,0.42067]
[1728051585063,0.42068,2377.5,2377.4,0.42067]
[1728051585375,0.42068,2377.5,2377.1,4.34185]
[1728051585376,0.42071,2377.4,2377.3,0.42069]
[1728051586271,0.42072,2377.3,2377.2,0.42071]
[1728051586866,0.42074,2377.2,2377.1,0.42073]
[1728051588868,0.42072,2377.3,2377.2,0.4207]
[1728051589069,0.4134,2377.4,2377.0,1.0519]
[1728051589264,0.42073,2377.3,2377.2,0.42071]
[1728051592486,0.42076,2377.1,2377.0,0.42074]
[1728051592980,0.42074,2377.2,2377.1,0.42072]
[1728051593283,0.42076,2377.1,2377.0,0.42074]
[1728051593483,0.42078,2377.0,2376.6,1.44644]
[1728051593782,1.05198,2376.9,2376.5,0.406]
[1728051594078,6.4978,2377.0,2376.2,3.2078]
[1728051594079,0.42086,2376.5,2376.4,0.42084]
[1728051594281,0.42088,2376.4,2376.3,0.42087]
[1728051594581,0.3954,2376.6,2376.2,1.05225]
[1728051594881,0.8151,2376.8,2376.7,0.42081]
[1728051595077,0.85107,2377.0,2376.9,0.42077]
[1728051595282,0.21220527,2377.1,2376.7,3.29]
[1728051595585,0.63294527,2377.1,2377.0,0.42076]
[1728051596382,0.42074,2377.1,2377.0,0.42076]
[1728051596968,0.82213,2377.2,2377.1,0.42074]
[1728051597182,0.85099,2377.4,2377.3,0.4207]
[1728051597780,0.4303,2377.4,2377.3,0.4207]
[1728051598680,3.6092,2377.6,2377.4,0.42067]
[1728051598883,0.42067,2377.5,2377.4,0.42067]
[1728051600181,0.4195,2377.7,2377.3,0.4156]
[1728051600384,0.42069,2377.4,2377.3,0.83629]
[1728051600679,0.42069,2377.4,2377.3,0.4156]
[1728051601376,0.42069,2377.4,2377.2,0.82681]
[1728051601377,4.34172,2377.5,2376.9,1.47574]
[1728051601684,3.29,2377.1,2376.4,3.29]
[1728051601980,3.29,2377.1,2376.1,3.2078]
[1728051601981,3.29,2376.5,2376.1,3.2078]
[1728051602184,6.8976,2377.0,2376.1,0.42091]
[1728051602185,3.29,2376.3,2376.1,0.42091]
[1728051602380,3.71089,2376.3,2376.0,0.4162]
[1728051602588,0.42087,2376.4,2376.2,0.4209]
[1728051602788,0.3961,2376.5,2376.3,0.42087]
[1728051602974,1.05201,2376.8,2376.6,0.42081]
[1728051602975,0.4208,2376.8,2376.6,0.42081]
[1728051603182,0.42079,2376.8,2376.6,0.42081]
[1728051603378,0.42079,2376.8,2376.3,3.7019]
[1728051603684,0.42079,2376.8,2376.0,4.67632]
[1728051603685,3.2078,2376.6,2376.1,0.42091]
[1728051603886,3.2078,2376.6,2376.0,0.4162]
[1728051603887,0.42092,2376.1,2376.0,0.4162]
[1728051604289,3.608,2376.3,2375.7,3.2078]
[1728051604983,3.2078,2376.3,2375.7,3.2078]
[1728051605278,0.4002,2376.6,2375.8,0.4051]
[1728051605482,0.42086,2376.5,2376.2,0.42089]
[1728051605685,0.42086,2376.4,2376.2,0.42089]
[1728051606182,3.2078,2376.7,2376.3,4.208]
[1728051606376,3.2078,2376.7,2376.4,0.4172]
[1728051606582,0.42083,2376.6,2376.5,0.42084]
[1728051606779,3.2078,2376.7,2376.4,0.4172]
[1728051606987,3.2078,2376.7,2376.6,0.42083]
[1728051607287,3.2078,2376.7,2376.4,0.4172]
[1728051607489,3.2078,2376.7,2376.6,0.42083]
[1728051608798,3.62861,2376.7,2376.6,0.42083]
[1728051608980,3.2078,2376.7,2376.6,0.42083]
[1728051609180,3.62861,2376.7,2376.6,0.42083]
[1728051609479,3.2078,2376.7,2376.4,0.4172]
[1728051609682,1.05196,2376.9,2376.4,0.4172]
[1728051609990,0.42081,2376.7,2376.6,0.42081]
[1728051610689,0.42083,2376.6,2376.5,0.42083]
[1728051610879,4.2598,2376.8,2376.4,0.4172]
[1728051611077,0.42082,2376.7,2376.6,0.42082]
[1728051611284,4.2598,2376.8,2376.4,0.4172]
[1728051611488,0.42084,2376.6,2376.5,0.42083]
[1728051611688,3.6286,2376.8,2376.7,0.42081]
[1728051611885,1.86232,2377.0,2376.5,1.05212]
[1728051611886,0.8104,2377.0,2376.5,1.05212]
[1728051612080,0.3998,2377.0,2376.5,1.05212]
[1728051612289,1.4517,2377.0,2376.6,0.426]
[1728051612593,0.42084,2376.5,2376.4,0.83805]
[1728051612888,0.42084,2376.5,2376.4,0.83806]
[1728051613190,1.05203,2376.7,2376.4,0.4172]
[1728051613396,0.42084,2376.6,2376.5,0.42083]
[1728051613895,1.05199,2376.8,2376.1,1.47849]
[1728051614195,0.42082,2376.7,2376.6,0.42082]
[1728051614492,0.42082,2376.7,2376.2,1.05225]
[1728051614493,0.42078,2376.9,2376.8,0.42077]
[1728051614682,0.82056,2377.0,2376.9,0.42077]
[1728051615187,0.42086,2376.5,2376.4,0.42086]
[1728051615495,3.2078,2376.8,2376.2,1.05225]
[1728051615689,0.42083,2376.7,2376.6,0.42082]
[1728051616190,0.42083,2376.7,2376.1,0.8389]
[1728051616494,0.42089,2376.3,2376.2,0.42089]
[1728051616695,0.42084,2376.6,2376.5,0.42084]
[1728051616896,0.42087,2376.4,2376.3,0.42086]
[1728051617092,0.42086,2376.5,2376.4,0.42084]
[1728051617286,4.38541105,2376.9,2376.6,0.42082]
[1728051617489,3.12259457,2377.0,2376.3,4.04]
[1728051617786,0.42079,2376.9,2376.8,0.42078]
[1728051618189,0.82056,2377.0,2376.9,0.42077]
[1728051618390,2.72279457,2377.3,2376.9,4.2072]
[1728051618594,0.42073,2377.2,2377.1,0.42073]
[1728051618797,3.2078,2377.2,2376.6,4.0561]
[1728051618997,0.42081,2376.7,2376.6,4.47692]
[1728051619189,1.05185,2377.1,2376.4,0.42085]
[1728051619190,4.25976,2376.9,2376.4,0.42085]
[1728051619389,5.09026,2376.9,2376.6,0.42082]
[1728051619585,0.42083,2376.6,2376.5,0.42083]
[1728051619901,5.09026,2376.9,2376.3,0.825]
[1728051620190,0.4208,2376.8,2376.7,0.42079]
[1728051621792,0.42082,2376.7,2376.6,0.42082]
[1728051622292,3.14355457,2377.1,2376.6,10.208]
[1728051622494,0.42077,2377.0,2376.9,0.42076]
[1728051622693,1.05185,2377.1,2376.7,0.4208]
[1728051622694,0.42082,2376.8,2376.7,0.4208]
[1728051623192,0.42082,2376.8,2376.5,0.42082]
[1728051623193,0.42084,2376.6,2376.5,0.42082]
[1728051624595,0.42082,2376.7,2376.6,0.4208]
[1728051625595,0.42086,2376.5,2376.4,0.42084]
[1728051625997,5.93059457,2376.9,2376.3,0.825]
[1728051626199,5.93059457,2376.9,2376.3,1.87719]
[1728051626407,3.95705457,2377.0,2376.9,0.42077]
[1728051626589,0.8135,2377.0,2376.4,1.05215]
[1728051626907,2.72279457,2377.1,2376.6,1.05208]
[1728051627201,0.42079,2376.9,2376.8,0.42078]
[1728051627499,0.42085,2376.6,2376.5,0.42084]
[1728051627693,0.4151,2376.8,2376.3,0.825]
[1728051627897,0.42084,2376.6,2376.5,0.42083]
[1728051628090,0.42086,2376.5,2376.4,0.42084]
[1728051628402,0.42086,2376.4,2376.3,1.24587]
[1728051628702,0.42086,2376.5,2376.4,0.42085]
[1728051628897,0.42086,2376.5,2376.1,1.05226]
[1728051629100,0.42091,2376.2,2376.1,0.42089]
[1728051629692,0.42092,2376.1,2376.0,0.81361]
[1728051630194,1.05223,2376.3,2376.2,0.42088]
[1728051630195,0.42089,2376.3,2376.2,0.42088]
[1728051630800,3.77495457,2376.5,2376.0,1.44504]
[1728051630990,3.77495457,2376.5,2376.3,0.42086]
[1728051630991,0.42088,2376.4,2376.3,0.42086]
[1728051631193,0.42091,2376.2,2376.1,0.42089]
[1728051631791,0.42092,2376.1,2375.7,1.47237]
[1728051631997,0.42098,2375.8,2375.7,0.42098]
[1728051632198,8.69345,2376.0,2375.6,0.4166]
[1728051632398,0.42103,2375.5,2375.2,3.2078]
[1728051632593,7.2478,2375.7,2375.2,3.2078]
[1728051632594,8.3003,2375.7,2375.2,3.2078]
[1728051632792,2.72998874,2375.8,2375.4,1.05259]
[1728051632996,2.72998874,2375.9,2375.8,0.42097]
[1728051633204,3.15093874,2375.9,2375.8,0.42097]
[1728051633396,0.42095,2375.9,2375.8,0.42097]
[1728051633791,0.42095,2375.9,2375.6,0.421]
[1728051634002,6.33108874,2376.0,2375.6,0.4166]
[1728051634300,0.42098,2375.8,2375.7,0.42098]
[1728051634504,3.6011,2376.0,2375.6,0.4166]
[1728051634705,0.42097,2375.9,2375.8,0.42097]
[1728051634901,0.42099,2375.7,2375.6,0.421]
[1728051635298,0.42096,2375.9,2375.8,0.42096]
[1728051635593,0.3933,2376.0,2375.9,0.42095]
[1728051635793,0.81423,2376.0,2375.9,0.42095]
[1728051635999,0.42091,2376.2,2375.6,1.05252]
[1728051636199,0.42092,2376.1,2376.0,0.42091]
[1728051636597,4.67472,2376.3,2375.9,0.416]
[1728051636791,0.4147,2376.3,2375.9,0.416]
[1728051636999,0.421,2375.7,2375.6,0.421]
[1728051637404,1.05239,2375.9,2375.8,0.42097]
[1728051637405,0.3913,2375.9,2375.8,0.42097]
[1728051637599,0.42094,2376.0,2375.9,0.42094]
[1728051637793,0.42094,2376.0,2375.5,1.44395]
[1728051638101,0.42096,2375.9,2375.8,0.42095]
[1728051639006,3.2078,2376.0,2375.5,0.3914]
[1728051639207,0.42102,2375.6,2375.5,0.42101]
[1728051639595,0.42105,2375.4,2375.3,0.42105]
[1728051640304,3.2078,2375.4,2374.6,0.209]
[1728051640601,1.05268,2375.3,2374.7,0.4277]
[1728051640796,4.16250578,2375.7,2374.7,0.4277]
[1728051640797,3.2078,2375.1,2374.7,0.4277]
[1728051640993,0.42116,2374.7,2374.6,0.4074]
[1728051641394,0.42116,2374.7,2374.6,0.42118]
[1728051641609,0.42116,2374.7,2374.3,0.4031]
[1728051641610,0.42115,2374.8,2374.7,0.42115]
[1728051641798,0.42116,2374.8,2374.7,0.42116]
[1728051643318,0.42114,2374.9,2374.8,0.42114]
[1728051643607,0.42116,2374.8,2374.7,0.42115]
[1728051644000,0.42119,2374.6,2374.5,0.42119]
[1728051644199,1.0529,2374.8,2373.7,1.26234]
[1728051644200,5.09296,2374.7,2373.7,1.26234]
[1728051644399,0.42131,2373.9,2373.7,0.4166]
[1728051644605,1.05309,2374.3,2373.4,0.42138]
[1728051644606,0.42135,2373.7,2373.4,0.42138]
[1728051644802,0.42135,2373.7,2373.5,0.42137]
[1728051644995,0.42137,2373.6,2373.3,0.838]
[1728051645196,0.42137,2373.6,2373.4,0.42139]
[1728051645408,3.62914,2373.8,2373.5,0.42137]
[1728051645706,3.2078,2373.8,2373.3,0.4166]
[1728051646008,0.42135,2373.7,2373.5,0.42137]
[1728051646207,0.42135,2373.7,2373.3,0.4166]
[1728051646505,3.2078,2373.8,2373.3,0.4166]
[1728051646707,3.62913,2373.8,2373.5,0.42137]
[1728051646911,0.8365,2373.9,2373.8,0.42132]
[1728051647301,3.2078,2374.1,2373.4,1.05349]
[1728051647606,1.05307,2374.4,2374.2,0.42125]
[1728051647607,0.4259,2374.3,2374.2,0.42125]
[1728051648711,0.4259,2374.3,2373.9,0.409]
[1728051648909,0.42119,2374.6,2374.4,0.42121]
[1728051649109,4.05485,2374.8,2374.5,0.42118]
[1728051649309,3.6337,2374.8,2374.6,0.42117]
[1728051649612,4.04811,2375.1,2374.3,1.05309]
[1728051649807,3.2078,2375.1,2374.4,1.05303]
[1728051650108,3.2078,2375.1,2374.7,0.42116]
[1728051650109,0.42112,2375.0,2374.7,0.42116]
[1728051650304,0.42112,2375.0,2374.7,0.42115]
[1728051650506,3.2078,2375.1,2374.7,0.42115]
[1728051650705,0.42113,2374.9,2374.7,0.42115]
[1728051650900,3.2078,2375.1,2374.5,0.4268]
[1728051651106,0.42117,2374.7,2374.4,0.42121]
[1728051651308,0.42117,2374.7,2374.5,0.4212]
[1728051651817,0.42113,2374.9,2374.7,0.42116]
[1728051652006,3.6289,2375.1,2374.4,0.42122]
[1728051652312,3.6289,2375.1,2374.5,0.4268]
[1728051652313,3.2078,2375.1,2374.5,0.4268]
[1728051652607,3.2078,2375.1,2374.9,0.42112]
[1728051652809,3.2078,2375.1,2375.0,0.42111]
[1728051653011,3.2078,2375.1,2374.5,1.47979]
[1728051653214,3.2078,2374.8,2374.1,0.209]
[1728051653521,3.2078,2374.8,2374.7,0.42116]
[1728051653809,4.65702,2375.2,2374.3,3.2078]
[1728051654002,4.65702,2375.2,2374.8,0.42115]
[1728051654003,0.42112,2375.0,2374.8,0.42115]
[1728051654214,0.4211,2375.1,2374.9,0.42113]
[1728051654410,3.6043,2375.2,2374.9,0.42112]
[1728051654712,3.6043,2375.2,2374.6,4.26076]
[1728051655016,0.3965,2375.2,2375.1,0.42109]
[1728051655203,0.83216,2375.3,2375.1,0.42109]
[1728051655510,3.2078,2375.5,2375.4,0.42104]
[1728051656108,0.392,2375.6,2375.0,1.05277]
[1728051656304,0.42098,2375.8,2375.5,0.42101]
[1728051656512,8.06376,2375.9,2375.6,0.42099]
[1728051656815,0.42098,2375.8,2375.5,0.42101]
[1728051657005,3.6028,2375.9,2375.8,0.42097]
[1728051657311,0.395,2375.9,2375.8,0.42097]
[1728051657503,0.82621,2376.2,2375.5,3.2078]
[1728051657703,0.4053,2376.2,2375.8,0.42096]
[1728051657908,0.42094,2376.0,2375.8,0.42096]
[1728051658316,0.4053,2376.2,2375.5,4.26036]
[1728051658514,0.4053,2376.2,2375.9,0.42094]
[1728051658515,0.42092,2376.1,2375.9,0.42094]
[1728051659209,0.4053,2376.2,2375.5,1.05256]
[1728051659419,0.42092,2376.1,2375.9,0.42094]
[1728051659906,0.42095,2375.9,2375.7,0.42097]
[1728051660107,0.8262,2376.2,2376.0,0.42092]
[1728051660311,3.62869,2376.3,2376.1,0.4209]
[1728051660518,4.26003,2376.3,2375.5,3.2078]
[1728051660817,0.42093,2376.1,2375.9,0.42095]
[1728051661008,8.30003,2376.3,2375.9,0.42095]
[1728051661208,8.30003,2376.3,2375.5,1.05256]
[1728051661404,8.30003,2376.3,2375.4,4.68599]
[1728051661608,0.42087,2376.4,2376.2,0.4209]
[1728051661809,0.82306,2376.5,2376.3,0.42088]
[1728051662112,4.02493,2376.6,2376.4,0.42085]
[1728051662413,4.02493,2376.6,2376.0,1.05234]
[1728051662414,0.3963,2376.6,2376.3,0.42087]
[1728051662620,0.42086,2376.4,2376.3,0.42087]
[1728051662816,0.81714,2376.6,2376.4,0.42085]
[1728051663208,0.42086,2376.5,2376.3,0.42088]
[1728051663408,0.3963,2376.6,2376.3,0.42088]
[1728051663611,0.3963,2376.6,2376.3,0.42087]
[1728051663809,0.3963,2376.6,2376.2,0.42088]
[1728051664017,0.3963,2376.6,2376.0,3.6291]
[1728051664209,1.44839,2376.6,2376.0,3.6291]
[1728051664516,0.42087,2376.4,2376.3,0.42088]
[1728051664818,0.3963,2376.6,2376.0,3.6291]
[1728051665022,3.2078,2376.5,2376.0,3.6291]
[1728051665320,3.2078,2376.5,2376.0,3.2078]
[1728051665515,0.42092,2376.1,2376.0,3.2078]
[1728051665707,0.42091,2376.2,2376.1,0.42092]
[1728051666120,0.42093,2376.0,2375.9,0.84934]
[1728051666424,0.42092,2376.1,2376.0,0.42092]
[1728051666625,3.2078,2376.5,2375.9,0.4284]
[1728051666940,1.05221,2376.3,2375.9,0.4284]
[1728051667123,0.42093,2376.0,2375.9,0.84934]
[1728051667312,0.4209,2376.2,2376.1,0.42091]
[1728051667615,1.05218,2376.4,2376.0,0.42092]
[1728051667818,1.05218,2376.4,2376.1,0.42091]
[1728051667819,0.4209,2376.2,2376.1,0.42091]
[1728051668621,1.05218,2376.4,2375.9,0.4284]
[1728051668919,0.421,2375.7,2375.6,0.421]
[1728051669124,0.42101,2375.6,2375.5,0.42102]
[1728051669318,0.42106,2375.3,2375.2,0.42108]
[1728051669516,0.4107,2375.5,2375.0,0.4227]
[1728051669711,0.83174,2375.5,2375.4,0.42104]
[1728051670216,3.2078,2375.6,2375.0,1.47548]
[1728051670414,3.62882,2375.6,2375.5,0.42102]
[1728051670621,3.2078,2375.6,2375.2,1.05269]
[1728051670821,4.04,2375.5,2375.0,0.84379]
[1728051671024,4.04,2375.2,2374.5,0.209]
[1728051671326,0.42124,2374.3,2374.0,0.42127]
[1728051671523,4.04,2374.3,2373.5,0.4008]
[1728051671935,7.2478,2374.3,2373.5,0.4008]
[1728051672225,7.2478,2374.3,2374.0,0.42127]
[1728051672528,0.81961,2374.5,2374.2,0.42125]
[1728051672722,0.3984,2374.5,2373.8,3.2078]
[1728051673130,0.42123,2374.4,2374.1,0.42126]
[1728051673521,4.04,2374.3,2373.5,3.6086]
[1728051673716,0.42126,2374.2,2373.9,0.4213]
[1728051674126,4.9484,2374.5,2373.5,3.6086]
[1728051674724,0.42126,2374.2,2373.5,3.6086]
[1728051675029,0.42129,2374.0,2373.7,0.42133]
[1728051675327,4.55,2373.9,2373.1,0.209]
[1728051675525,4.55,2373.9,2373.0,3.2078]
[1728051675721,0.42133,2373.8,2373.5,0.42137]
[1728051675922,3.62914,2373.7,2373.4,0.42138]
[1728051676125,3.62914,2373.7,2372.9,0.42147]
[1728051676126,0.42144,2373.2,2372.9,0.42147]
[1728051676328,0.42145,2373.1,2372.9,0.42147]
[1728051676542,3.2078,2373.4,2372.7,0.4234]
[1728051676826,3.2078,2373.4,2373.0,0.42145]
[1728051676827,0.42142,2373.3,2373.0,0.42145]
[1728051677137,0.42144,2373.2,2372.9,0.42148]
[1728051677330,0.42143,2373.3,2373.0,0.42146]
[1728051677633,3.2078,2373.4,2372.7,0.4234]
[1728051677830,3.2078,2373.4,2373.2,0.42142]
[1728051678230,0.42137,2373.6,2373.3,0.42141]
[1728051678532,0.42137,2373.6,2372.9,1.05372]
[1728051678926,0.42137,2373.6,2373.3,0.4214]
[1728051679128,0.8196,2373.8,2372.9,1.05372]
[1728051679337,0.8196,2373.8,2373.4,0.42139]
[1728051679525,1.24094,2373.8,2373.5,0.42136]
[1728051679834,0.8196,2373.8,2373.2,3.2078]
[1728051680022,0.8196,2373.8,2373.2,4.26138]
[1728051680324,0.3941,2373.8,2373.3,0.42141]
[1728051680526,3.2078,2374.2,2373.3,1.05354]
[1728051680732,3.2078,2374.2,2373.0,4.55]
[1728051680733,3.2078,2374.2,2374.0,0.42127]
[1728051681039,3.62905,2374.2,2373.5,4.26125]
[1728051681230,3.62905,2374.2,2374.0,0.42129]
[1728051681728,3.2078,2374.2,2374.0,0.42129]
[1728051682033,3.2078,2374.2,2373.5,4.26125]
[1728051682034,0.42122,2374.4,2374.1,0.42126]